Workbook

Sheet Лист1
F1: "Утверждаю"
F2: Руководитель дошкольной образовательной
F3: организации
C8: Примерное 10-дневное меню
C9: для организации питания детей в дошкольных учреждениях
C10: с 10,5 - часовым пребыванием от 3 до 7 лет
A12: День 1 - ый
A13: Наименование блюд и | C13: Масса | D13: Пищевые вещества | G13: Энергетическая | H13: Витамин | I13: Сборник рецептур
A14: продуктов | C14: порции | G14: ценность
D15: белки | E15: жиры | F15: угл-ды | G15: Ккал | H15: С
B16: ЗАВТРАК
A17: Каша кукурузная молочная с маслом | C17: 200/5 | D17: 5.89 | E17: 5.42 | F17: 25.84 | G17: 176.00 | H17: 0.21 | I17: №311,сбшк2004
A18: Кофейный напиток с молоком | C18: 180 | D18: 1.22 | E18: 1.34 | F18: 11.94 | G18: 65.00 | H18: 0.19 | I18: №395 Дели2010
A19: Бутерброд с маслом сливочным | C19: 30/5 | D19: 2.30 | E19: 4.50 | F19: 15.40 | G19: 111.00 | I19: №1 Дели2010
A20: Итого: | C20: 420 | D20: =SUM(D16:D19) -> 9.41 | E20: =SUM(E16:E19) -> 11.26 | F20: =SUM(F16:F19) -> 53.18 | G20: =SUM(G16:G19) -> 352.00 | H20: =SUM(H16:H19) -> 0.40
B21: 2 - ой ЗАВТРАК
A22: Сок | C22: 95 | D22: 0.30 | E22: 0.00 | F22: 8.80 | G22: 36.40 | H22: 11.00 | I22: №399Дели2010
A23: Итого: | C23: =SUM(C22:C22) -> 95 | D23: =SUM(D22) -> 0.30 | E23: =SUM(E22) -> 0.00 | F23: =SUM(F22) -> 8.80 | G23: =SUM(G22) -> 36.40 | H23: =SUM(H22) -> 11.00
B24: ОБЕД
A25: Свекла отварная | C25: 50 | D25: 1.33 | E25: 0.16 | F25: 7.16 | G25: 35.00 | H25: 2.00 | I25: сб1996, стр564
A26: Рассольник ленинградский со сметаной | C26: 200/7 | D26: 1.90 | E26: 4.10 | F26: 12.50 | G26: 95.00 | H26: 5.37 | I26: №132 шк.сб2004
A27: Пудинг рыбный | C27: 80.00 | D27: 11.60 | E27: 7.20 | F27: 8.60 | G27: 145.60 | I27: ТТК №4
A28: Картофель тушёный | C28: 120 | D28: 2.25 | E28: 6.75 | F28: 10.50 | G28: 112.00 | H28: 9.00 | I28: №216сбшк2004
A29: Компот из сухофруктов | C29: 150 | D29: 0.70 | E29: 0.04 | F29: 20.60 | G29: 85.00 | H29: 0.30 | I29: №376Дели2010
A30: Хлеб сельский | C30: 37.5 | D30: 1.8 | E30: 0.4 | F30: 18 | G30: 82.5
A31: Итого: | C31: 644.5 | D31: =SUM(D25:D30) -> 19.58 | E31: =SUM(E25:E30) -> 18.65 | F31: =SUM(F25:F30) -> 77.36 | G31: =SUM(G25:G30) -> 555.10 | H31: =SUM(H25:H30) -> 16.67
B32: ПОЛДНИК
A33: Фрукты свежие | C33: 70 | D33: 0.50 | E33: 0.10 | F33: 3.50 | G33: 17.00 | H33: 48.00 | I33: № 368 Дели 2010
A34: Пирожок печёный с повидлом | C34: 50 | D34: 3.00 | E34: 2.60 | F34: 22.00 | G34: 122.50 | H34: 0.00 | I34: №738,сбшк2004
A35: Кефир | C35: 130 | D35: 3.70 | E35: 3.25 | F35: 5.00 | G35: 64.00 | H35: 0.80 | I35: №401 Дели2010
A36: Котлеты рубленые из говядины | C36: 50 | D36: 11 | E36: 10.8 | F36: 10.9 | G36: 184 | H36: 0.42 | I36: №451сбшк2004
A37: Капуста тушеная | C37: 120 | D37: 2.7 | E37: 3.9 | F37: 11.3 | G37: 90.4 | H37: 19.7 | I37: №534сбшк2004
A38: Чай с сахаром | C38: 120/5 | D38: 0.05 | E38: 0.01 | F38: 6.5 | G38: 26 | I38: №392Дели2010
A39: Хлеб пшеничный 1с | C39: 10 | D39: 0.78 | E39: 0.10 | F39: 4.90 | G39: 23.60 | H39: 0.00
A40: Итого: | C40: 555 | D40: =SUM(D32:D39) -> 21.73 | E40: =SUM(E32:E39) -> 20.76 | F40: =SUM(F32:F39) -> 64.10 | G40: =SUM(G32:G39) -> 527.50 | H40: =SUM(H32:H39) -> 68.92
A41: ВСЕГО: | C41: =C20+C23+C31+C40 -> 1714.5 | D41: 51.02 | E41: 50.67 | F41: 203.44 | G41: 1471.00 | H41: 96.99
A43: День 2- ой
A44: Наименование блюд и | C44: Масса | D44: Пищевые вещества | G44: Энергетическая | H44: Витамин | I44: Сборник
A45: продуктов | C45: порции | G45: ценность | I45: рецептур
D46: белки | E46: жиры | F46: угл-ды | G46: Ккал | H46: С
B47: ЗАВТРАК
A48: Каша ячневая молочная с маслом | C48: 200/5 | D48: 7.10 | E48: 8.20 | F48: 37.00 | G48: 250.00 | H48: 0.50 | I48: №311,сбшк2004
A49: Какао с молоком | C49: 180 | D49: 2.42 | E49: 2.58 | F49: 13.61 | G49: 88.33 | H49: 0.39 | I49: №397 Дели2010
A50: Бутерброд с сыром, маслом | C50: 30/7/5 | D50: 4.80 | E50: 7.20 | F50: 15.40 | G50: 146.00 | H50: 0.19 | I50: №3 Дели2010
A51: Итого: | C51: 427 | D51: =SUM(D47:D50) -> 14.32 | E51: =SUM(E47:E50) -> 17.98 | F51: =SUM(F47:F50) -> 66.01 | G51: =SUM(G47:G50) -> 484.33 | H51: =SUM(H47:H50) -> 1.08
B52: 2 - ой ЗАВТРАК
A53: Сок | C53: 95 | D53: 0.30 | E53: 0.00 | F53: 3.00 | G53: 13.00 | H53: 38.00 | I53: №399Дели2010
A54: Итого: | C54: =SUM(C53) -> 95 | D54: 0.30 | E54: 0.00 | F54: 3.00 | G54: 13.00 | H54: 38.00
B55: ОБЕД
A56: Огурцы соленые порционно | C56: 30 | D56: 0.24 | E56: 0.03 | F56: 0.51 | G56: 3.90 | H56: 1.50 | I56: сб1996, стр563
A57: Борщ со свежей капустой, картофелем на м/б,со сметаной | C57: 200/7 | D57: 1.50 | E57: 3.90 | F57: 9.50 | G57: 79.00 | H57: 6.36 | I57: №110, сб шк2004
A58: Плов из говядины | C58: 200 | D58: 15.60 | E58: 15.00 | F58: 28.00 | G58: 309.50 | H58: 0.65 | I58: №443,сбшк2004
A59: Кисель | C59: 150 | F59: 15.00 | G59: 60.00 | I59: № 648, сб шк2004
A60: Хлеб пшеничный 1с | C60: 30 | D60: 1.50 | E60: 0.30 | F60: 14.40 | G60: 66.00 | H60: 0.00
A61: Хлеб сельский | C61: 37.5 | D61: 1.8 | E61: 0.4 | F61: 18 | G61: 82.5
A62: Кондитерские изделия (вафли) | C62: 24.5 | D62: 0.56 | E62: 1.20 | F62: 3.00 | G62: 25.00
A63: Итого: | C63: 654.5 | D63: =SUM(D55:D62) -> 21.20 | E63: =SUM(E55:E62) -> 20.83 | F63: =SUM(F55:F62) -> 88.41 | G63: =SUM(G55:G62) -> 625.90 | H63: =SUM(H55:H62) -> 8.51
B64: ПОЛДНИК
A65: Фрукты свежие | C65: 70 | D65: 0.01 | E65: 0.01 | F65: 2.80 | G65: 11.00 | H65: 8.00 | I65: № 368 Дели 2010
A66: Ряженка | C66: 130 | D66: 3.72 | E66: 3.20 | F66: 3.50 | G66: 58.00 | H66: 0.65 | I66: №401 Дели2010
A67: Салат из моркови с курагой | C67: 30 | D67: 0.73 | E67: 0.07 | F67: 7.20 | G67: 32.00 | H67: 0.49 | I67: №55. справ.М2003
A68: Суфле из творога с повидлом | C68: 80/15 | D68: 10.60 | E68: 5.90 | F68: 21.60 | G68: 181.60 | H68: 0.24 | I68: №365сбшк2004
A69: Чай с сахаром и лимоном | C69: 120/5/3 | D69: 0.08 | E69: 0.01 | F69: 6.80 | G69: 27.30 | H69: 1.90 | I69: №393Дели2010
A70: Хлеб пшеничный 1с | C70: 10 | D70: 0.78 | E70: 0.10 | F70: 4.90 | G70: 23.60 | H70: 0.00
A71: Итого: | C71: 463 | D71: =SUM(D64:D70) -> 15.92 | E71: =SUM(E64:E70) -> 9.29 | F71: =SUM(F64:F70) -> 46.80 | G71: =SUM(G64:G70) -> 333.50 | H71: =SUM(H64:H70) -> 11.28
A72: ВСЕГО: | C72: =C51+C54+C63+C71 -> 1639.5 | D72: 51.74 | E72: 48.10 | F72: 204.22 | G72: 1456.73 | H72: 58.87
A74: День 3 - ий
A75: Наименование блюд и | C75: Масса | D75: Пищевые вещества | G75: Энергетическая | H75: Витамин | I75: Сборник
A76: продуктов | C76: порции | G76: ценность | I76: рецептур
D77: белки | E77: жиры | F77: угл-ды | G77: Ккал | H77: С
B78: ЗАВТРАК
A79: Каша пшеничная молочная с маслом | C79: 200/5 | D79: 6.00 | E79: 7.00 | F79: 28.00 | G79: 199.00 | H79: 0.22 | I79: №311, сбшк2004
A80: Чай с сахаром | C80: 180/10 | D80: 0.10 | E80: 0.02 | F80: 10.00 | G80: 40.00 | I80: № 392 Дели 2010
A81: Бутерброд с маслом сливочным | C81: 30/5 | D81: 2.30 | E81: 4.50 | F81: 15.40 | G81: 111.00 | I81: №1 Дели2010
A82: Итого: | C82: 430 | D82: =SUM(D78:D81) -> 8.40 | E82: =SUM(E78:E81) -> 11.52 | F82: =SUM(F78:F81) -> 53.40 | G82: =SUM(G78:G81) -> 350.00 | H82: =SUM(H78:H81) -> 0.22
B83: 2 - ой ЗАВТРАК
A84: Сок | C84: 95 | D84: 0.01 | E84: 0.00 | F84: 3.00 | G84: 12.00 | H84: 3.80 | I84: 399Дели2010
A85: Итого: | C85: =SUM(C84) -> 95 | D85: 0.01 | E85: 0.00 | F85: 3.00 | G85: 12.00 | H85: 3.80
B86: ОБЕД
A87: Салат витаминный | C87: 60 | D87: 0.90 | E87: 3.50 | F87: 8.00 | G87: 67.00 | H87: 10.20 | I87: №40, сб шк2004
A88: Суп вермишелевый с картофелем с мясными фрикадельками | C88: 200/20 | D88: 5.32 | E88: 5.74 | F88: 20.10 | G88: 153.00 | H88: 5.30 | I88: №140,сбшк2004
A89: Биточки куриные "Солнышко" | C89: 70 | D89: 11.00 | E89: 6.00 | F89: 9.00 | G89: 134.00 | H89: 0.45 | I89: акт к.п.от 07.02.14
A90: Рагу овощное | C90: 180 | D90: 3.60 | E90: 6.60 | F90: 14.40 | G90: 131.00 | H90: 8.90 | I90: №224, сбшк2004
A91: Компот из кураги | C91: 150 | D91: 0.7 | E91: 0.0 | F91: 20.0 | G91: 83 | H91: 0.13 | I91: №376, Дели 2010
A92: Хлеб сельский | C92: 37.5 | D92: 1.8 | E92: 0.4 | F92: 18 | G92: 82.5
A93: Итого: | C93: 717.5 | D93: =SUM(D86:D92) -> 23.32 | E93: =SUM(E86:E92) -> 22.24 | F93: =SUM(F86:F92) -> 89.50 | G93: =SUM(G86:G92) -> 650.50 | H93: =SUM(H86:H92) -> 24.98
B94: ПОЛДНИК
A95: Фрукты свежие | C95: 70 | D95: 0.01 | E95: 0.01 | F95: 2.00 | G95: 8.00 | H95: 8.00 | I95: № 368 Дели 2010
A96: Катык | C96: 130 | D96: 3.5 | E96: 3.25 | F96: 3.5 | G96: 57.2 | H96: 0.84 | I96: №401Дели2010
A97: Булочка Домашняя | C97: 45 | D97: 4.20 | E97: 3.80 | F97: 14.00 | G97: 107.00 | H97: 0.00 | I97: №769сбшк2004
A98: Тефтели рыбные в сметанно-томатном соусе | C98: 50/15 | D98: 7.80 | E98: 3.00 | F98: 5.00 | G98: 78.00 | I98: ТТК №1
A99: Пюре Картофельное | C99: 100 | D99: 2.00 | E99: 3.00 | F99: 14.00 | G99: 91.00 | H99: 6.95 | I99: №520,сбшк2004
A100: Чай с молоком,сахаром | C100: 120/5 | D100: 2.10 | E100: 1.60 | F100: 9.50 | G100: 61.00 | H100: 0.93 | I100: №394Дели2010
A101: Хлеб пшеничный 1с | C101: 23 | D101: 1.80 | E101: 0.23 | F101: 11.30 | G101: 54.50 | H101: 0.00
A102: Итого: | C102: 558 | D102: =SUM(D94:D101) -> 21.41 | E102: =SUM(E94:E101) -> 14.89 | F102: =SUM(F94:F101) -> 59.30 | G102: =SUM(G94:G101) -> 456.70 | H102: =SUM(H94:H101) -> 16.72
A103: ВСЕГО: | C103: =C82+C85+C93+C102 -> 1800.5 | D103: =D82+D85+D93+D102 -> 53.14 | E103: =E82+E85+E93+E102 -> 48.65 | F103: 205.20 | G103: 1469.20 | H103: 45.72
A105: День 4 - ый
A106: Наименование блюд и | C106: Масса | D106: Пищевые вещества | G106: Энергетическая | H106: Витамин | I106: Сборник
A107: продуктов | C107: порции | G107: ценность | I107: рецептур
D108: белки | E108: жиры | F108: угл-ды | G108: Ккал | H108: С
B109: ЗАВТРАК
A110: Суп молочный с крупой | C110: 180 | D110: 3.50 | E110: 4.40 | F110: 15.00 | G110: 114.00 | H110: 0.52 | I110: №161,сбшк2004
A111: Кофейный напиток с молоком | C111: 180 | D111: 1.22 | E111: 1.34 | F111: 11.94 | G111: 65.00 | H111: 0.19 | I111: №395 Дели2010
A112: Бутерброд с сыром, маслом | C112: 30/7/5 | D112: 4.80 | E112: 7.20 | F112: 15.40 | G112: 146.00 | H112: 0.19 | I112: №3 Дели2010
A113: Итого: | C113: 402 | D113: =SUM(D109:D112) -> 9.52 | E113: =SUM(E109:E112) -> 12.94 | F113: =SUM(F109:F112) -> 42.34 | G113: =SUM(G109:G112) -> 325.00 | H113: =SUM(H109:H112) -> 0.90
B114: 2 - ой ЗАВТРАК
A115: Сок | C115: 95 | D115: 0.50 | E115: 0.00 | F115: 11.00 | G115: 46.00 | H115: 81.00 | I115: №399Дели2010
A116: Итого: | C116: =SUM(C115) -> 95 | D116: 0.50 | E116: 0.00 | F116: 11.00 | G116: 46.00 | H116: 81.00
B117: ОБЕД
A118: Салат из свеклы | C118: 60 | D118: 0.75 | E118: 3.00 | F118: 3.60 | G118: 44.30 | H118: 1.50 | I118: №64, справ. М.2003г
A119: Щи со свежей капустой, картофелем со сметаной | C119: 200/7 | D119: 1.40 | E119: 4.50 | F119: 6.80 | G119: 73.00 | H119: 9.60 | I119: №124,сбшк2004
A120: Запеканка картофельная с мясом | C120: 150/20 | D120: 14.10 | E120: 12.40 | F120: 30.00 | G120: 288.00 | H120: 4.40 | I120: №291 Дели2010
A121: Компот из сухофруктов | C121: 150 | D121: 0.70 | E121: 0.04 | F121: 20.60 | G121: 85.00 | H121: 1.20 | I121: № 376 Дели2010
A122: Хлеб сельский | C122: 37.5 | D122: 1.8 | E122: 0.4 | F122: 18 | G122: 82.5
A123: Итого: | C123: 624.5 | D123: =SUM(D117:D122) -> 18.75 | E123: =SUM(E117:E122) -> 20.34 | F123: =SUM(F117:F122) -> 79.00 | G123: =SUM(G117:G122) -> 572.80 | H123: =SUM(H117:H122) -> 16.70
B124: ПОЛДНИК
A125: Кефир | C125: 130/2 | D125: 3.70 | E125: 3.25 | F125: 5.20 | G125: 65.00 | H125: 0.80 | I125: №401 Дели2010
A126: Кондитерские изделия(печенье) | C126: 35 | D126: 2.50 | E126: 6.00 | F126: 5.00 | G126: 84.00
A127: Фрукты свежие | C127: 70 | D127: 1.20 | E127: 0.40 | F127: 15.00 | G127: 68.40 | H127: 8.00 | I127: № 368 Дели 2010
A128: Морковь с сахаром | C128: 30 | D128: 0.37 | E128: 0.02 | F128: 3.15 | G128: 13.50 | H128: 0.57 | I128: №11. справ.М2003
A129: Пудинг творожный с сгущенным молоком | C129: 90/15 | D129: 10.85 | E129: 6.57 | F129: 25.00 | G129: 202.50 | H129: 11.25 | I129: №349, справ М 2003
A130: Чай с сахаром | C130: 120/5 | D130: 0.05 | E130: 0.01 | F130: 6.5 | G130: 26 | I130: №392Дели2010
A131: Хлеб пшеничный 1с | C131: 23 | D131: 1.80 | E131: 0.23 | F131: 11.30 | G131: 54.50 | H131: 0.00
A132: Итого: | C132: 520 | D132: =SUM(D124:D131) -> 20.47 | E132: =SUM(E124:E131) -> 16.48 | F132: =SUM(F124:F131) -> 71.15 | G132: =SUM(G124:G131) -> 513.90 | H132: =SUM(H124:H131) -> 20.62
A133: ВСЕГО: | C133: =C113+C116+C123+C132 -> 1641.5 | D133: 49.24 | E133: 49.76 | F133: 203.49 | G133: 1457.70 | H133: 119.22
A136: День 5 - ый
A137: Наименование блюд и | C137: Масса | D137: Пищевые вещества | G137: Энергетическая | H137: Витамин | I137: Сборник
A138: продуктов | C138: порции | G138: ценность | I138: рецептур
D139: белки | E139: жиры | F139: угл-ды | G139: Ккал | H139: С
B140: ЗАВТРАК
A141: Каша "Дружба" молочная с маслом | C141: 200/5 | D141: 5.20 | E141: 7.10 | F141: 23.20 | G141: 176.00 | H141: 0.21 | I141: №311, сб шк2004
A142: Какао с молоком | C142: 180 | D142: 2.42 | E142: 2.58 | F142: 13.61 | G142: 88.33 | H142: 0.39 | I142: №397 Дели2010
A143: Бутерброд с маслом сливочным | C143: 30/5 | D143: 2.30 | E143: 4.50 | F143: 15.40 | G143: 111.00 | I143: №1 Дели2010
A144: Итого: | C144: 420 | D144: =SUM(D140:D143) -> 9.92 | E144: =SUM(E140:E143) -> 14.18 | F144: =SUM(F140:F143) -> 52.21 | G144: =SUM(G140:G143) -> 375.33 | H144: =SUM(H140:H143) -> 0.61
B145: 2 - ой ЗАВТРАК
A146: Сок | C146: 95 | D146: 0.30 | E146: 0.00 | F146: 10.00 | G146: 41.20 | H146: 38.00 | I146: №399Дели2010
A147: Итого: | C147: =SUM(C146) -> 95 | D147: 0.30 | E147: 0.00 | F147: 10.00 | G147: 41.20 | H147: 38.00
B148: ОБЕД
A149: Салат из свежей капусты | C149: 60 | D149: 1.20 | E149: 2.70 | F149: 5.50 | G149: 51.00 | H149: 5.60 | I149: №43, сбшк2004
A150: Суп картофельный с горохом с курицей | C150: 200/15 | D150: 8.25 | E150: 4.40 | F150: 16.00 | G150: 136.60 | H150: 5.80 | I150: №139,сб шк2004
A151: Суфле рыбное | C151: 70 | D151: 11.00 | E151: 7.50 | F151: 2.00 | G151: 119.50 | H151: 0.01 | I151: №208, сб.диет2002
A152: Макароны отварные с овощами | C152: 110 | D152: 5.60 | E152: 6.50 | F152: 18.15 | G152: 153.50 | H152: 0.11 | I152: №125, сб. Пермь,2008г
A153: Масса отварных макарон
A154: Компот из свежих яблок | C154: 150 | D154: 0.10 | E154: 0.10 | F154: 11.80 | G154: 47.00 | H154: 1.20 | I154: №631,сбшк2004
A155: Хлеб сельский | C155: 37.5 | D155: 1.8 | E155: 0.4 | F155: 18 | G155: 82.5
A156: Итого: | C156: 642.5 | D156: =SUM(D148:D155) -> 27.95 | E156: =SUM(E148:E155) -> 21.60 | F156: =SUM(F148:F155) -> 71.45 | G156: =SUM(G148:G155) -> 590.10 | H156: =SUM(H148:H155) -> 12.72
B157: ПОЛДНИК | D157: ,
A158: Фрукты свежие | C158: 70 | D158: 0.32 | E158: 0.01 | F158: 16.00 | G158: 65.40 | H158: 4.00 | I158: № 368 Дели 2010
A159: Плюшка новомосковская | C159: 40 | D159: 2.00 | E159: 2.30 | F159: 17.00 | G159: 96.70 | H159: 0.01 | I159: №184 "Партнер"г. Уфа2010
A160: Ряженка | C160: 130 | D160: 3.72 | E160: 3.20 | F160: 4.46 | G160: 61.50 | H160: 0.65 | I160: №401 Дели2010
A161: Свекла отварная | C161: 40 | D161: 0.50 | E161: 0.07 | F161: 3.00 | G161: 14.60 | H161: 1.00 | I161: сб1996, стр564
A162: Котлеты рубленые из птицы | C162: 50 | D162: 7.25 | E162: 4.80 | F162: 4.50 | G162: 90.20 | H162: 0.21 | I162: №306Дели2010
A163: Рагу из овощей | C163: 102 | D163: 1.26 | E163: 5.26 | F163: 7.49 | G163: 82.30 | H163: 5.21 | I163: №137Дели2010
A164: соус томатный | I164: №348 Дели2010
A165: Чай с сахаром и лимоном | C165: 120/5/3 | D165: 0.08 | E165: 0.01 | F165: 6.80 | G165: 27.30 | H165: 1.90 | I165: №393Дели2010
A166: Хлеб пшеничный 1с | C166: 10 | D166: 0.78 | E166: 0.10 | F166: 4.90 | G166: 23.60 | H166: 0.00
A167: Итого: | C167: 570 | D167: =SUM(D157:D166) -> 15.91 | E167: =SUM(E157:E166) -> 15.75 | F167: =SUM(F157:F166) -> 64.15 | G167: =SUM(G157:G166) -> 461.60 | H167: =SUM(H157:H166) -> 12.98
A168: ВСЕГО: | C168: =C144+C156+C167 -> 1632.5 | D168: =D144+D147+D156+D167 -> 54.08 | E168: =E144+E147+E156+E167 -> 51.53 | F168: =F144+F147+F156+F167 -> 197.81 | G168: =G144+G147+G156+G167 -> 1468.23 | H168: =H144+H147+H156+H167 -> 64.31
A170: День 6 - ой
A171: Наименование блюд и | C171: Масса | D171: Пищевые вещества | G171: Энергетическая | H171: Витамин | I171: Сборник
A172: продуктов | C172: порции | G172: ценность | I172: рецептур
D173: белки | E173: жиры | F173: угл-ды | G173: Ккал | H173: С
B174: ЗАВТРАК
A175: Каша пшённая молочная с маслом | C175: 200/5 | D175: 7.30 | E175: 9.00 | F175: 32.90 | G175: 241.00 | H175: 0.21 | I175: №311,сбшк2004
A176: Чай с молоком,сахаром | C176: 180/10 | D176: 2.60 | E176: 2.30 | F176: 14.30 | G176: 89.00 | H176: 0.02 | I176: № 394 Дели2010
A177: Бутерброд с сыром, маслом | C177: 30/7/5 | D177: 4.80 | E177: 7.20 | F177: 15.40 | G177: 146.00 | H177: 0.19 | I177: №3 Дели2010
A178: Итого: | C178: 437 | D178: =SUM(D175:D177) -> 14.70 | E178: =SUM(E175:E177) -> 18.50 | F178: =SUM(F175:F177) -> 62.60 | G178: =SUM(G175:G177) -> 476.00 | H178: =SUM(H175:H177) -> 0.42
B179: 2 - ой ЗАВТРАК
A180: Сок | C180: 95 | D180: 0.01 | E180: 0.01 | F180: 3.00 | G180: 12.00 | H180: 1.90 | I180: №399Дели2010
A181: Итого: | C181: =SUM(C180) -> 95 | D181: 0.01 | E181: 0.01 | F181: 3.00 | G181: 12.00 | H181: 1.90
B182: ОБЕД
A183: Салат из капусты с яблоками | C183: 60 | D183: 0.70 | E183: 2.00 | F183: 3.80 | G183: 36.00 | H183: 7.52 | I183: №42, сб шк2004
A184: Свекольник с мясными фрикадельками, со сметаной | C184: 200/20/6 | D184: 9.30 | E184: 8.10 | F184: 14.90 | G184: 169.00 | H184: 6.36 | I184: №35,сб Пермь2001
A185: Биточки рубленые из рыбы | C185: 70 | D185: 8.40 | E185: 3.50 | F185: 3.50 | G185: 79.00 | I185: ТТК №3
A186: Пюре Картофельное | C186: 120 | D186: 2.40 | E186: 3.60 | F186: 16.80 | G186: 109.20 | H186: 8.34 | I186: №520,сбшк2004
A187: Компот из кураги | C187: 150 | D187: 0.7 | E187: 0.0 | F187: 20.0 | G187: 83 | H187: 0.13 | I187: №376, Дели 2010
A188: Хлеб сельский | C188: 37.5 | D188: 1.8 | E188: 0.4 | F188: 18 | G188: 82.5
A189: Итого: | C189: 663.5 | D189: =SUM(D183:D188) -> 23.30 | E189: =SUM(E183:E188) -> 17.60 | F189: =SUM(F183:F188) -> 77.00 | G189: =SUM(G183:G188) -> 558.70 | H189: =SUM(H183:H188) -> 22.35
B190: ПОЛДНИК
A191: Фрукты свежие | C191: 70 | D191: 0.01 | E191: 0.01 | F191: 3.00 | G191: 12.00 | H191: 8.00 | I191: № 368 Дели 2010
A192: Булочка "Веснушка" | C192: 40 | D192: 3.12 | E192: 2.40 | F192: 14.00 | G192: 90.00 | H192: 0.00 | I192: №773,сбшк2004
A193: Катык | C193: 130 | D193: 3.5 | E193: 3.2 | F193: 3.5 | G193: 56 | H193: 0.84 | I193: №401Дели2010
A194: Голубцы ленивые в соусе сметанно-томатн. | C194: 130/20 | D194: 8.00 | E194: 8.00 | F194: 20.50 | G194: 186.00 | H194: 0.80 | I194: №160,сб Пермь2001
A195: Чай с сахаром | C195: 120/5 | D195: 0 | E195: 0 | F195: 6.5 | G195: 26 | I195: №392Дели2010
A196: Хлеб пшеничный 1с | C196: 23 | D196: 1.80 | E196: 0.23 | F196: 11.30 | G196: 54.50 | H196: 0.00
A197: Итого: | C197: 538 | D197: =SUM(D191:D196) -> 16.43 | E197: =SUM(E191:E196) -> 13.84 | F197: =SUM(F191:F196) -> 58.80 | G197: =SUM(G191:G196) -> 424.50 | H197: =SUM(H191:H196) -> 9.64
A198: ВСЕГО: | C198: =C178+C181+C189+C197 -> 1733.5 | D198: 54.44 | E198: 49.95 | F198: 201.40 | G198: 1471.20 | H198: 34.31
A200: День 7 - ой
A201: Наименование блюд и | C201: Масса | D201: Пищевые вещества | G201: Энергетическая | H201: Витамин | I201: Сборник рецептур
A202: продуктов | C202: порции | G202: ценность
D203: белки | E203: жиры | F203: угл-ды | G203: Ккал | H203: С
B204: ЗАВТРАК
A205: Суп молочный с вермишелью | C205: 180 | D205: 3.90 | E205: 3.70 | F205: 16.00 | G205: 112.00 | H205: 0.50 | I205: №160,сбшк2004
A206: Кофейный напиток с молоком | C206: 180 | D206: 1.22 | E206: 1.34 | F206: 11.94 | G206: 65.00 | H206: 0.19 | I206: №395 Дели2010
A207: Бутерброд с маслом сливочным | C207: 30/5 | D207: 2.30 | E207: 4.50 | F207: 15.40 | G207: 111.00 | I207: №1 Дели2010
A208: Фрукты свежие | C208: 70 | D208: 0.32 | E208: 0.30 | F208: 5.00 | G208: 24.00 | H208: 8.00 | I208: № 368 Дели 2010
A209: Итого: | C209: 465 | D209: =SUM(D205:D208) -> 7.74 | E209: =SUM(E205:E208) -> 9.84 | F209: 48.34 | G209: 312.00 | H209: 8.69
B210: 2 - ой ЗАВТРАК
A211: Сок | C211: 95 | D211: 0.29 | E211: 0.00 | F211: 15.60 | G211: 64.60 | H211: 5.70 | I211: №399Дели2010
A212: Итого: | C212: =SUM(C211) -> 95 | D212: 0.29 | E212: 0.00 | F212: 15.60 | G212: 64.60 | H212: 5.70
... 139 more rows

Sheet Лист2

Sheet Лист3
